fUST/lending_fUST_20250812
["ID","MTS","AMOUNT","RATE_DAILY","PERIOD"]
[378721323,1754989876985,-460.0,0.00021559,2]
[378721324,1754989876994,-1440.43,0.00021559,2]
[378721325,1754989877003,-1053.87,0.00021559,2]
[378721326,1754989877012,-679.08,0.00021559,2]
[378721327,1754989877022,-1390.83,0.00021559,2]
[378721328,1754989877031,-466.54,0.00021559,2]
[378721329,1754989877043,-460.0,0.00021559,2]
[378721330,1754989877052,-698.56,0.00021559,2]
[378721331,1754989877061,-460.0,0.00021559,2]
[378721332,1754989877070,-600.61,0.00021559,2]
[378721333,1754989877079,-688.97,0.00021559,2]
[378721334,1754989877089,-1382.57,0.00021559,2]
[378721335,1754989877097,-1743.77,0.00021559,2]
[378721336,1754989877106,-9176.97,0.00021559,2]
[378721337,1754989877116,-460.0,0.00021559,2]
[378721338,1754989877125,-880.3,0.00021559,2]
[378721339,1754989877135,-2946.27,0.00021559,2]
[378721340,1754989877144,-598.93,0.00021559,2]
[378721341,1754989877153,-4712.31,0.00021559,2]
[378721342,1754989877162,-2191.98,0.00021559,2]
[378721343,1754989877171,-460.0,0.00021559,2]
[378721344,1754989877180,-460.0,0.00021559,2]
[378721345,1754989877189,-826.58,0.00021559,2]
[378721346,1754989877198,-590.73,0.00021559,2]
[378721347,1754989877209,-417.05,0.00021559,2]
[378721348,1754989877220,-460.0,0.00021559,2]
[378721349,1754989877230,-722.38,0.00021559,2]
[378721350,1754989877244,-771.5,0.00021559,2]
[378721351,1754989877261,-1280.88,0.00021559,2]
[378721352,1754989877270,-460.0,0.00021559,2]
[378721353,1754989877280,-460.0,0.00021559,2]
[378721354,1754989877291,-2627.69814656,0.00021564,2]
[378721355,1754989877300,-2500.0,0.00021564,2]
[378721356,1754989877309,-40622.82475448,0.00021655,2]
[378721357,1754989877318,-576.0,0.00021657,2]
[378721358,1754989877326,-2095.32,0.00021657,2]
[378721359,1754989877335,-1918.85,0.00021657,2]
[378721360,1754989877345,-2635.68,0.00021657,2]
[378721361,1754989877354,-1506.4,0.00021657,2]
[378721362,1754989877363,-1237.41,0.00021657,2]
[378721363,1754989877372,-460.0,0.00021657,2]
[378721364,1754989877382,-3087.66,0.00021657,2]
[378721365,1754989877391,-3102.53,0.00021657,2]
[378721366,1754989877400,-460.0,0.00021658,2]
[378721367,1754989877408,-1285.31,0.00021658,2]
[378721368,1754989877418,-1061.43,0.00021658,2]
[378721369,1754989877427,-660.19,0.00021658,2]
[378721370,1754989877436,-703.67,0.00021658,2]
[378721371,1754989877445,-1571.34,0.00021658,2]
[378721372,1754989877455,-479.36,0.00021658,2]
[378721373,1754989877464,-381.35494239,0.00021658,2]
[378721374,1754989877473,-460.0,0.00021658,2]
[378721375,1754989877482,-460.0,0.00021658,2]
[378721376,1754989877492,-961.98,0.00021658,2]
[378721377,1754989877500,-460.0,0.00021658,2]
[378721378,1754989877510,-596.7,0.00021658,2]
[378721379,1754989877520,-548.06,0.00021658,2]
[378721380,1754989877529,-851.89,0.00021658,2]
[378721381,1754989877540,-360.92725667,0.00021658,2]
[378721382,1754989877549,-703.0,0.00021658,2]
[378721383,1754989877558,-534.6,0.00021658,2]
[378721384,1754989877567,-1574.67,0.00021658,2]
[378721385,1754989877577,-651.47,0.00021658,2]
[378721386,1754989877585,-460.0,0.00021658,2]
[378721387,1754989877724,-2172.38,0.00021658,2]
[378721388,1754989877735,-460.0,0.00021658,2]
[378721389,1754989877745,-460.0,0.00021658,2]
[378721390,1754989877755,-460.0,0.00021658,2]
[378721391,1754989877766,-460.0,0.00021658,2]
[378721392,1754989877776,-460.0,0.00021658,2]
[378721393,1754989877787,-460.0,0.0002166,2]
[378721394,1754989877796,-460.0,0.0002166,2]
[378721395,1754989877806,-460.0,0.0002166,2]
[378721396,1754989877815,-519.91,0.0002166,2]
[378721397,1754989877824,-536.22,0.0002166,2]
[378721398,1754989877833,-460.0,0.0002166,2]
[378721399,1754989877843,-460.0,0.0002166,2]
[378721400,1754989877852,-460.0,0.0002166,2]
[378721401,1754989877861,-460.0,0.0002166,2]
[378721402,1754989877869,-550.0,0.0002166,2]
[378721403,1754989877878,-150.52483999,0.0002166,2]
[378721404,1754989877887,-515.1,0.0002166,2]
[378721405,1754989877899,-1117.38,0.0002166,2]
[378721406,1754989877915,-460.0,0.0002166,2]
[378721407,1754989877924,-837.98,0.0002166,2]
[378721408,1754989877934,-211.40625741,0.00021664,2]
[378721409,1754989877943,-2500.0,0.00021664,2]
[378721410,1754989877953,-2500.0,0.00021664,2]
[378721411,1754989877962,-1674.50713498,0.00021664,2]
[378721412,1754989877980,-4000.0,0.00021667,4]
[378721413,1754989877989,-3056.0,0.00021671,2]
[378721414,1754989877999,-500.0,0.00021671,2]
[378721415,1754989878008,-162.65333618,0.00021699,2]
[378721416,1754989878017,-250.0,0.000217,2]
[378721417,1754989878027,-2151.0,0.00021733,2]
[378721418,1754989878037,-636.0,0.00021733,2]
[378721419,1754989878047,-971.0,0.00021733,2]
[378721420,1754989878056,-150.0,0.0002176,2]
[378721421,1754989878065,-150.0,0.0002176,2]
[378721422,1754989878074,-150.0,0.0002176,2]
[378721423,1754989878083,-150.0,0.0002176,2]
[378721424,1754989878093,-150.0,0.0002176,2]
[378721425,1754989878102,-1820.0,0.000218,2]
[378721426,1754989878111,-162.65333618,0.00021808,2]
[378721427,1754989878120,-511.44,0.0002183,2]
[378721428,1754989878130,-460.0,0.0002183,2]
[378721429,1754989878139,-778.07,0.0002183,2]
[378721430,1754989878149,-695.2,0.0002183,2]
[378721431,1754989878158,-3994.01,0.0002183,2]
[378721432,1754989878167,-607.67,0.0002183,2]
[378721433,1754989878176,-2824.63,0.0002183,2]
[378721434,1754989878186,-496.78,0.0002183,2]
[378721435,1754989878197,-2881.31,0.00021831,2]
[378721436,1754989878206,-624.47,0.00021831,2]
[378721437,1754989878216,-580.14,0.00021831,2]
[378721438,1754989878226,-1844.43,0.00021831,2]
[378721439,1754989878235,-3780.92,0.00021831,2]
[378721440,1754989878244,-852.8,0.00021831,2]
[378721441,1754989878254,-1219.8,0.00021831,2]
[378721442,1754989878264,-801.24,0.00021831,2]
[378721443,1754989878274,-1272.56,0.00021831,2]
[378721444,1754989878283,-832.96,0.00021831,2]
[378721445,1754989878294,-1059.69,0.00021831,2]
[378721446,1754989878303,-1297.9,0.00021831,2]
[378721447,1754989878312,-1696.21,0.00021831,2]
[378721448,1754989878321,-460.0,0.00021833,2]
[378721449,1754989878331,-535.01,0.00021833,2]
[378721450,1754989878340,-856.74,0.00021833,2]
[378721451,1754989878350,-601.61,0.00021833,2]
[378721452,1754989878359,-622.63,0.00021833,2]
[378721453,1754989878368,-460.0,0.00021833,2]
[378721454,1754989878377,-460.0,0.00021833,2]
[378721455,1754989878386,-460.0,0.00021833,2]
[378721456,1754989878395,-409.89760658,0.00021833,2]
[378721457,1754989878404,-582.68,0.00021833,2]
[378721458,1754989878413,-460.0,0.00021833,2]
[378721459,1754989878423,-519.88,0.00021833,2]
[378721460,1754989878432,-913.33,0.00021833,2]
[378721461,1754989878441,-689.99,0.00021833,2]
[378721462,1754989878451,-460.0,0.00021833,2]
[378721463,1754989878460,-460.0,0.00021833,2]
[378721464,1754989878470,-460.0,0.00021833,2]
[378721465,1754989878480,-731.05,0.00021833,2]
[378721466,1754989878489,-460.0,0.00021833,2]
[378721467,1754989878498,-460.0,0.00021833,2]
[378721468,1754989878507,-839.52,0.00021833,2]
[378721469,1754989878517,-980.86,0.00021833,2]
[378721470,1754989878527,-816.4,0.00021833,2]
[378721471,1754989878537,-460.0,0.00021833,2]
[378721472,1754989878547,-575.45,0.00021833,2]
[378721473,1754989878557,-866.6,0.00021833,2]
[378721474,1754989878566,-460.0,0.00021833,2]
[378721475,1754989878575,-638.72,0.00021833,2]
[378721476,1754989878585,-460.0,0.00021833,2]
[378721477,1754989878595,-460.0,0.00021833,2]
[378721478,1754989878605,-1440.43,0.00021833,2]
[378721479,1754989878617,-1053.87,0.00021833,2]
[378721480,1754989878628,-679.08,0.00021833,2]
[378721481,1754989878640,-1390.83,0.00021833,2]
[378721482,1754989878651,-466.54,0.00021833,2]
[378721483,1754989878660,-460.0,0.00021833,2]
[378721484,1754989878670,-698.56,0.00021833,2]
[378721485,1754989878679,-460.0,0.00021833,2]
[378721486,1754989878692,-600.61,0.00021833,2]
[378721487,1754989878702,-688.97,0.00021833,2]
[378721488,1754989878712,-1382.57,0.00021833,2]
[378721489,1754989878722,-1743.77,0.00021833,2]
[378721490,1754989878733,-9176.97,0.00021833,2]
[378721491,1754989878743,-460.0,0.00021833,2]
[378721492,1754989878753,-880.3,0.00021833,2]
[378721493,1754989878767,-2946.27,0.00021833,2]
[378721494,1754989878777,-598.93,0.00021833,2]
[378721495,1754989878790,-4712.31,0.00021833,2]
[378721496,1754989878801,-2191.98,0.00021833,2]
[378721497,1754989878811,-460.0,0.00021833,2]
[378721498,1754989878821,-273.65319889,0.00021833,2]
[378721499,1754989878831,-826.58,0.00021833,2]
[378721500,1754989878840,-590.73,0.00021833,2]
[378721501,1754989878850,-460.0,0.00021833,2]
[378721502,1754989878860,-722.38,0.00021833,2]
[378721503,1754989878870,-771.5,0.00021833,2]
[378721504,1754989878882,-1280.88,0.00021833,2]
[378721505,1754989878892,-460.0,0.00021833,2]
[378721506,1754989878902,-460.0,0.00021833,2]
[378721507,1754989878912,-250.0,0.000219,2]
[378721508,1754989878922,-250.0,0.000219,2]
[378721509,1754989878932,-389.5,0.000219,2]
[378721510,1754989878941,-800.0,0.00021904,2]
[378721511,1754989878952,-3000.0,0.00021912,2]
[378721512,1754989878962,-500.0,0.00021917,2]
[378721513,1754989878971,-500.0,0.00021917,2]
[378721514,1754989878980,-500.0,0.00021917,2]
[378721515,1754989878990,-500.0,0.00021917,2]
[378721516,1754989879000,-500.0,0.00021917,2]
[378721517,1754989879010,-500.0,0.00021917,2]
[378721518,1754989879020,-500.0,0.00021917,2]
[378721519,1754989879028,-500.0,0.00021917,2]
[378721520,1754989879040,-500.0,0.00021917,2]
[378721521,1754989879050,-500.0,0.00021917,2]
[378721522,1754989879061,-500.0,0.00021917,2]
[378721523,1754989879070,-500.0,0.00021917,2]
[378721524,1754989879080,-500.0,0.00021917,2]
[378721525,1754989879090,-153.0,0.00021918,2]
[378721526,1754989879099,-153.0,0.00021918,2]
[378721527,1754989879108,-153.0,0.00021918,2]
[378721528,1754989879118,-153.0,0.00021918,2]
[378721529,1754989879128,-153.0,0.00021918,2]
[378721530,1754989879138,-153.0,0.00021918,2]
[378721531,1754989879148,-153.0,0.00021918,2]
[378721532,1754989879157,-153.0,0.00021918,2]
[378721533,1754989879166,-153.0,0.00021918,2]
[378721534,1754989879175,-153.0,0.00021918,2]
[378721535,1754989879185,-153.0,0.00021918,2]
[378721536,1754989879194,-153.0,0.00021918,2]
[378721537,1754989879203,-153.0,0.00021918,2]
[378721538,1754989879213,-153.0,0.00021918,2]
[378721539,1754989879222,-153.0,0.00021918,2]
[378721540,1754989879231,-153.0,0.00021918,2]
[378721541,1754989879240,-153.0,0.00021918,2]
[378721542,1754989879249,-153.0,0.00021918,2]
[378721543,1754989879258,-153.0,0.00021918,2]
[378721544,1754989879267,-153.0,0.00021918,2]
[378721545,1754989879278,-153.0,0.00021918,2]
[378721546,1754989879289,-153.0,0.00021918,2]
[378721547,1754989879299,-153.0,0.00021918,2]
[378721548,1754989879308,-153.0,0.00021918,2]
[378721549,1754989879318,-153.0,0.00021918,2]
[378721550,1754989879327,-153.0,0.00021918,2]
[378721551,1754989879336,-153.0,0.00021918,2]
[378721552,1754989879345,-153.0,0.00021918,2]
[378721553,1754989879355,-153.0,0.00021918,2]
[378721554,1754989879364,-153.0,0.00021918,2]
[378721555,1754989879373,-153.0,0.00021918,2]
[378721556,1754989879382,-153.0,0.00021918,2]
[378721557,1754989879391,-153.0,0.00021918,2]
[378721558,1754989879399,-153.0,0.00021918,2]
[378721559,1754989879409,-153.0,0.00021918,2]
[378721560,1754989879418,-153.0,0.00021918,2]
[378721561,1754989879427,-153.0,0.00021918,2]
[378721562,1754989879436,-153.0,0.00021918,2]
[378721563,1754989879445,-153.0,0.00021918,2]
[378721564,1754989879454,-153.0,0.00021918,2]
[378721565,1754989879464,-153.0,0.00021918,2]
[378721566,1754989879473,-153.0,0.00021918,2]
[378721567,1754989879482,-153.0,0.00021918,2]
[378721568,1754989879491,-153.0,0.00021918,2]
[378721569,1754989879500,-153.0,0.00021918,2]
[378721570,1754989879509,-153.0,0.00021918,2]
[378721571,1754989879518,-153.0,0.00021918,2]
[378721572,1754989879527,-153.0,0.00021918,2]
[378721573,1754989879537,-153.0,0.00021918,2]
[378721574,1754989879546,-153.0,0.00021918,2]
[378721575,1754989879554,-153.0,0.00021918,2]
[378721576,1754989879563,-153.0,0.00021918,2]
[378721577,1754989879572,-153.0,0.00021918,2]
[378721578,1754989879581,-153.0,0.00021918,2]
[378721579,1754989879590,-153.0,0.00021918,2]
[378721580,1754989879599,-153.0,0.00021918,2]
[378721581,1754989879608,-153.0,0.00021918,2]
[378721582,1754989879617,-153.0,0.00021918,2]
[378721583,1754989879626,-153.0,0.00021918,2]
[378721584,1754989879635,-153.0,0.00021918,2]
[378721585,1754989879644,-153.0,0.00021918,2]
[378721586,1754989879653,-153.0,0.00021918,2]
[378721587,1754989879662,-153.0,0.00021918,2]
[378721588,1754989879671,-153.0,0.00021918,2]
[378721589,1754989879681,-153.0,0.00021918,2]
[378721590,1754989879693,-153.0,0.00021918,2]
[378721591,1754989879702,-153.0,0.00021918,2]
[378721592,1754989879711,-153.0,0.00021918,2]
[378721593,1754989879720,-153.0,0.00021918,2]
[378721594,1754989879729,-153.0,0.00021918,2]
[378721595,1754989879739,-153.0,0.00021918,2]
[378721596,1754989879748,-153.0,0.00021918,2]
[378721597,1754989879757,-153.0,0.00021918,2]
[378721598,1754989879769,-153.0,0.00021918,2]
[378721599,1754989879779,-153.0,0.00021918,2]
[378721600,1754989879789,-153.0,0.00021918,2]
[378721601,1754989879798,-153.0,0.00021918,2]
[378721602,1754989879808,-153.0,0.00021918,2]
[378721603,1754989879817,-153.0,0.00021918,2]
[378721604,1754989879827,-153.0,0.00021918,2]
[378721605,1754989879837,-153.0,0.00021918,2]
[378721606,1754989879846,-153.0,0.00021918,2]
[378721607,1754989879856,-153.0,0.00021918,2]
[378721608,1754989879866,-153.0,0.00021918,2]
[378721609,1754989879875,-153.0,0.00021918,2]
[378721610,1754989879884,-153.0,0.00021918,2]
[378721611,1754989879893,-153.0,0.00021918,2]
[378721612,1754989879903,-153.0,0.00021918,2]
[378721613,1754989879912,-153.0,0.00021918,2]
[378721614,1754989879921,-153.0,0.00021918,2]
[378721615,1754989879930,-153.0,0.00021918,2]
[378721616,1754989879940,-153.0,0.00021918,2]
[378721617,1754989879950,-153.0,0.00021918,2]
[378721618,1754989879959,-153.0,0.00021918,2]
[378721619,1754989879968,-153.0,0.00021918,2]
[378721620,1754989879977,-153.0,0.00021918,2]
[378721621,1754989879986,-153.0,0.00021918,2]
[378721622,1754989879995,-153.0,0.00021918,2]
[378721623,1754989880004,-153.0,0.00021918,2]
[378721624,1754989880013,-153.0,0.00021918,2]
[378721625,1754989880022,-153.0,0.00021918,2]
[378721626,1754989880031,-153.0,0.00021918,2]
[378721627,1754989880041,-153.0,0.00021918,2]
[378721628,1754989880050,-153.0,0.00021918,2]
[378721629,1754989880059,-153.0,0.00021918,2]
[378721630,1754989880068,-153.0,0.00021918,2]
[378721631,1754989880076,-162.65333618,0.00021918,2]
[378721632,1754989880086,-426.096636,0.00021918,2]
[378721633,1754989880095,-426.096636,0.00021918,2]
[378721634,1754989880104,-426.096636,0.00021918,2]
[378721635,1754989880113,-426.096636,0.00021918,2]
[378721636,1754989880122,-426.096636,0.00021918,2]
[378721637,1754989880132,-426.096636,0.00021918,2]
[378721638,1754989880141,-426.096636,0.00021918,2]
[378721639,1754989880150,-426.096636,0.00021918,2]
[378721640,1754989880158,-426.096636,0.00021918,2]
[378721641,1754989880167,-426.096636,0.00021918,2]
[378721642,1754989880176,-426.096636,0.00021918,2]
[378721643,1754989880307,-426.096636,0.00021918,2]
[378721644,1754989880317,-426.096636,0.00021918,2]
[378721645,1754989880326,-426.096636,0.00021918,2]
[378721646,1754989880335,-426.096636,0.00021918,2]
[378721647,1754989880345,-426.096636,0.00021918,2]
[378721648,1754989880354,-426.096636,0.00021918,2]
[378721649,1754989880364,-426.096636,0.00021918,2]
[378721650,1754989880373,-426.096636,0.00021918,2]
[378721651,1754989880383,-426.096644,0.00021918,2]
[378721652,1754989880392,-150.0,0.00021918,2]
[378721653,1754989880402,-150.0,0.00021918,2]
[378721654,1754989880411,-650.0,0.00021918,2]
[378721655,1754989880420,-157.06970312,0.00021918,2]
[378721656,1754989880429,-152.0,0.00021918,2]
[378721657,1754989880439,-152.0,0.00021918,2]
[378721658,1754989880448,-152.0,0.00021918,2]
[378721659,1754989880457,-152.0,0.00021918,2]
[378721660,1754989880468,-152.0,0.00021918,2]
[378721661,1754989880477,-152.0,0.00021918,2]
[378721662,1754989880487,-152.0,0.00021918,2]
[378721663,1754989880497,-152.0,0.00021918,2]
[378721664,1754989880506,-152.0,0.00021918,2]
[378721665,1754989880515,-152.0,0.00021918,2]
[378721666,1754989880524,-152.0,0.00021918,2]
[378721667,1754989880533,-152.0,0.00021918,2]
[378721668,1754989880544,-239.20308048,0.00021918,2]
[378721669,1754989880553,-152.0,0.00021918,2]
[378721670,1754989880562,-152.0,0.00021918,2]
[378721671,1754989880572,-152.0,0.00021918,2]
[378721672,1754989880581,-152.0,0.00021918,2]
[378721673,1754989880591,-152.0,0.00021918,2]
[378721674,1754989880600,-152.0,0.00021918,2]
[378721675,1754989880609,-152.0,0.00021918,2]
[378721676,1754989880618,-152.0,0.00021918,2]
[378721677,1754989880628,-271.1255198,0.00021918,2]
[378721678,1754989880640,-152.0,0.00021918,2]
[378721679,1754989880650,-150.0,0.00021918,2]
[378721680,1754989880660,-200.0,0.00021918,2]
[378721681,1754989880670,-173.0,0.00021918,2]
[378721682,1754989880680,-172.16558578,0.00021918,2]
[378721683,1754989880695,-173.0,0.00021918,2]
[378721684,1754989880705,-175.4668263,0.00021918,2]
[378721685,1754989880715,-173.0,0.00021918,2]
[378721686,1754989880724,-152.0,0.00021918,2]
[378721687,1754989880734,-152.0,0.00021918,2]
[378721688,1754989880744,-152.0,0.00021918,2]
[378721689,1754989880753,-153.64941979,0.00021918,2]
[378721690,1754989880762,-152.0,0.00021918,2]
[378721691,1754989880771,-152.0,0.00021918,2]
[378721692,1754989880780,-152.0,0.00021918,2]
[378721693,1754989880791,-152.0,0.00021918,2]
[378721694,1754989880800,-660.0,0.00021921,2]
[378721695,1754989880809,-576.0,0.00021931,2]
[378721696,1754989880818,-2095.32,0.00021931,2]
[378721697,1754989880828,-1918.85,0.00021931,2]
[378721698,1754989880837,-2635.68,0.00021931,2]
[378721699,1754989880846,-1506.4,0.00021931,2]
[378721700,1754989880856,-1237.41,0.00021931,2]
[378721701,1754989880864,-460.0,0.00021931,2]
[378721702,1754989880874,-3087.66,0.00021931,2]
[378721703,1754989880884,-3102.53,0.00021931,2]
[378721704,1754989880893,-460.0,0.00021932,2]
[378721705,1754989880902,-1285.31,0.00021932,2]
[378721706,1754989880911,-1061.43,0.00021932,2]
[378721707,1754989880920,-660.19,0.00021932,2]
[378721708,1754989880929,-500.0,0.00021932,2]
[378721709,1754989880938,-703.67,0.00021932,2]
[378721710,1754989880947,-1571.34,0.00021932,2]
[378721711,1754989880956,-479.36,0.00021932,2]
[378721712,1754989880965,-460.0,0.00021932,2]
[378721713,1754989880974,-460.0,0.00021932,2]
[378721714,1754989880984,-961.98,0.00021932,2]
[378721715,1754989880993,-460.0,0.00021932,2]
[378721716,1754989881002,-596.7,0.00021932,2]
[378721717,1754989881011,-548.06,0.00021932,2]
[378721718,1754989881020,-851.89,0.00021932,2]
[378721719,1754989881029,-703.0,0.00021932,2]
[378721720,1754989881040,-534.6,0.00021932,2]
[378721721,1754989881049,-1574.67,0.00021932,2]
[378721722,1754989881058,-651.47,0.00021932,2]
[378721723,1754989881067,-460.0,0.00021932,2]
[378721724,1754989881076,-2172.38,0.00021932,2]
[378721725,1754989881085,-460.0,0.00021932,2]
[378721726,1754989881094,-460.0,0.00021932,2]
[378721727,1754989881104,-460.0,0.00021932,2]
[378721728,1754989881113,-460.0,0.00021932,2]
[378721729,1754989881122,-460.0,0.00021932,2]
[378721730,1754989881132,-460.0,0.00021934,2]
[378721731,1754989881140,-460.0,0.00021934,2]
[378721732,1754989881150,-460.0,0.00021934,2]
[378721733,1754989881159,-519.91,0.00021934,2]
[378721734,1754989881168,-536.22,0.00021934,2]
[378721735,1754989881177,-460.0,0.00021934,2]
[378721736,1754989881186,-460.0,0.00021934,2]
[378721737,1754989881195,-460.0,0.00021934,2]
[378721738,1754989881204,-460.0,0.00021934,2]
[378721739,1754989881213,-550.0,0.00021934,2]
[378721740,1754989881222,-515.1,0.00021934,2]
[378721741,1754989881231,-1117.38,0.00021934,2]
[378721742,1754989881240,-460.0,0.00021934,2]
[378721743,1754989881249,-837.98,0.00021934,2]
[378721744,1754989881258,-967.98670336,0.0002194,5]
[378721745,1754989881588,-460.0,0.00018545,2]
[378721746,1754989881597,-383.63590484,0.00018819,2]
[378721747,1754989881609,-80.02544224,0.00018819,2]
[378721748,1754989881618,-460.0,0.00020737,2]
[378721749,1754989881628,-325.0,0.0002079,2]
[378721750,1754989881637,-460.0,0.00021011,2]
[378721751,1754989881646,-460.0,0.00021285,2]
[378721752,1754989881655,-850.45,0.00021556,2]
[378721753,1754989881665,-460.0,0.00021559,2]
[378721754,1754989881673,-850.45,0.0002183,2]
[378721755,1754989881682,-460.0,0.00021833,2]
[378721756,1754989881697,-32.01329664,0.0002194,5]
[378721757,1754989881707,-1885.29450148,0.00021945,2]
[378721758,1754989881718,-1170.70549852,0.00021945,2]
[378721759,1754989881728,-289.30555043,0.00021945,2]
[378721760,1754989881740,-206.83722423,0.00021945,2]
[378721761,1754989881749,-2534.88840443,0.0002196,2]
[378721762,1754989882668,-474.39083577,0.0002196,2]
[378721763,1754989882749,187.912604,0.000231,30]
[378721764,1754989883083,-460.0,0.00018545,2]
[378721765,1754989883093,-460.0,0.00018545,2]
[378721766,1754989883102,-460.0,0.00018545,2]
[378721767,1754989883112,-460.0,0.00018644,2]
[378721768,1754989883121,-460.0,0.00018819,2]
[378721769,1754989883130,-460.0,0.00019093,2]
[378721770,1754989883140,-460.0,0.00019367,2]
[378721771,1754989883149,-187.912604,0.0002072,3]
[378721772,1754989883159,-490.7207598,0.0002196,2]
[378721773,1754989883168,-1988.85798001,0.0002196,2]
[378721774,1754989883180,-389.08634956,0.0002196,2]
[378721775,1754989883191,-791.2784889,0.0002196,2]
[378721776,1754989883238,-460.0,0.00018542,2]
[378721777,1754989883248,-460.0,0.00018545,2]
[378721778,1754989883257,-460.0,0.00018545,2]
[378721779,1754989883266,-864.1,0.00018716,3]
[378721780,1754989883275,-1235.55601118,0.00020086,3]
[378721781,1754989883292,-408.0,0.00018733,2]
[378721782,1754989883301,-492.64398882,0.00020086,3]
[378721783,1754989883310,-330.77718153,0.0002196,2]
[378721784,1754989883319,-1575.32976258,0.0002196,2]
[378721785,1754989946085,157.63588714,7.1e-07,2]
[378721786,1754989991771,4765.7500753,0.00018435,2]
[378721787,1754989991794,10000.0,0.00018435,2]
[378721788,1754989991819,10000.0,0.00018435,2]
[378721789,1754989991842,10000.0,0.00018435,2]
[378721790,1754989991863,10000.0,0.00018435,2]
[378721791,1754989991888,10000.0,0.00018435,2]
[378721792,1754989991911,10000.0,0.00018435,2]
[378721793,1754989991934,10000.0,0.00018435,2]
[378721794,1754989991956,10000.0,0.00018435,2]
[378721795,1754989991978,10000.0,0.00018435,2]
[378721796,1754989992000,10000.0,0.00018435,2]
[378721797,1754989992021,10000.0,0.00018435,2]
[378721798,1754989992043,10000.0,0.00018435,2]
[378721799,1754989992064,10000.0,0.00018435,2]
[378721800,1754989992086,10000.0,0.00018435,2]
[378721801,1754989992108,10000.0,0.00018435,2]
[378721802,1754989992129,10000.0,0.00018435,2]
[378721803,1754989992152,10000.0,0.00018435,2]
[378721804,1754989992173,10000.0,0.00018435,2]
[378721805,1754989992195,10000.0,0.00018435,2]
[378721806,1754989992217,10000.0,0.00018435,2]
[378721807,1754989992238,10000.0,0.00018435,2]
[378721808,1754989992260,10000.0,0.00018435,2]
[378721809,1754989992281,10000.0,0.00018435,2]
[378721810,1754989992303,10000.0,0.00018435,2]
[378721811,1754989992325,10000.0,0.00018435,2]
[378721812,1754989992347,10000.0,0.00018435,2]
[378721813,1754989992392,10000.0,0.00018435,2]
[378721814,1754989992441,10000.0,0.00018435,2]
[378721815,1754989992485,10000.0,0.00018435,2]
[378721816,1754989992524,10000.0,0.00018435,2]
[378721817,1754989992567,10000.0,0.00018435,2]
[378721818,1754989992608,10000.0,0.00018435,2]
[378721819,1754989992644,10000.0,0.00018435,2]
[378721820,1754989992682,10000.0,0.00018435,2]
[378721821,1754989992719,10000.0,0.00018435,2]
[378721822,1754989992761,10000.0,0.00018435,2]